{"text_format":"1","workbook":"xlsx","n_sheets":3,"sheets":["Sheet1","Sheet2","Sheet3"],"not_rendered":{"charts":0,"images":0,"macros":0,"external_links":0,"defined_names":24,"comments":0,"pivot_tables":0},"unopened":[],"bounds":{"document_bytes":16777216,"sheet_cells":100000,"rows_first":2000,"rows_last":500,"rows_between":2000,"halvings":0,"cell_chars":16384,"cell_head_chars":4096},"cells_cut":0,"cells_raw":0,"read":"whole","date_system":"1900"}

{"sheet":"Sheet1","index":0,"n_rows":69,"n_cols":11,"rows_kept":69,"cut":false,"hidden":false,"merged":[]}
["                                                                    USDA - RUS",null,"Title  of  Information  Document",null,null,null,null,null,"OMB  No."]
[null,null," ",null,null,null,null,null,null,"0572-0151"]
[" SUMMARY  OF  INFORMATION  COLLECTION",null,"RUS Rural Energy Savings Program (RESP)",null,null,null,null,null,"Date  Prepared"]
[null,null,"Burdens",null,null,null,null,null,null,2019]
[" INSTRUCTIONS:"," ",null,null,">","(f)  TOTAL",null,"(h)  TOTAL",null,"(k)  TOTAL"]
["Use this form when a single information collection document involves multiple reporting and                  ",null,null,null,">","-","= (e)  Average","-","= (g)  Average","-","= (j)  Average"]
["  recordkeeping requirements.  ",null,null,null,">","(d)  TOTAL",null,"(f)  TOTAL",null,"(i)  TOTAL"]
["         IDENTIFICATION  OF  REPORTING  AND  RECORDKEEPING  REQUIREMENTS",null,null,null,null,null,"ANNUAL  BURDEN"]
[null,null,"FORM",null,null,"REPORTS",null,null,null,"RECORDS"]
[null,null,"NO(s)","NO.  OF","NO.  OF","TOTAL","HOURS","TOTAL","NO.  OF","ANNUAL","TOTAL"]
["SECTION  OF",null,"(If  \"none\"","RESPON-","RESPONSES","ANNUAL","PER","HOURS","RECORD-","HOURS  PER","RECORD-"]
["REGULATIONS","DESCRIPTION","so  state)","DENTS","PER","RESPONSES","RESPONSE","(Col.  f  &  g)","KEEPERS","RECORD-","KEEPING"]
[null,null,null,null,"RESPON-","(Col.  d  &  e)",null,null,null,"KEEPER","HOURS"]
[null,null,null,null,"DENT",null,null,null,null,null,"(Col.  i  &  j)"]
["(a)","(b)","(c)","(d)","(e)","(f)","(g)","(h)","(i)","(j)","(k)"]
[null,"Step 1:  Letter of Intent","written",17,1,{"$f":"SUM(D16*E16)","v":17},5,{"$f":"SUM(F16*G16)","v":85}," "," "," "]
[null,"Step 2:  RESP Application",null,null,null,{"$f":"SUM(D17*E17)","v":0}]
[null,"Transmittal Letter                                                                                               (Request for RESP loan from Gen. Mgr)","written",9,1,9,1,{"$f":"SUM(F18*G18)","v":9}," "," "," "]
[null,null,null,null,null,null,null," "]
[null,"Board Resolution","written",9,1,9,1,{"$f":"SUM(F20*G20)","v":9}]
[null,null,null,null,null,null,null," "," "," "," "]
[null,"Environmental Compliance Review","written",9,1,9,10,{"$f":"SUM(F22*G22)","v":90}]
[null," ",null,null,null,null,null," "]
[null,"Energy Efficiency Program Implementation Work Plan","written",9,1,9,40,{"$f":"SUM(F24*G24)","v":360}]
[]
[null,"Long Range Financial Forecast and Board Resolution","written",9,1,9,40,{"$f":"SUM(F26*G26)","v":360}]
[]
[null,"Statement of Counsel","written",9,1,9,1,{"$f":"SUM(F28*G28)","v":9}]
[null,null,null,null,null,null,null," "]
[null,"Articles of Incorporation and Bylaws","written",9,1,9,0.5,{"$f":"SUM(F30*G30)","v":4.5}]
[]
[null,"STATEMENTS OF COMPLIANCE"]
[]
[null,"Ex. Order 13166, Limited English Proficiency Intiative","written",9,1,9,0.25,{"$f":"SUM(F34*G34)","v":2.25}]
[]
["2 CFR part 182, 421","Governmentwide Requirements for Drug-Free Workplace","AD-1049",9,1,9,0.25,{"$f":"SUM(F36*G36)","v":2.25}]
[null,null,"(0505-0027)"]
[]
["2 CFR part 417","Certification Regarding Debarment, Suspension","AD-1047 or",9,1,9,0.25,{"$f":"SUM(F39*G39)","v":2.25}]
[null,null,"AD-1048"]
[null,null,"(0505-0027)"]
["2 CFR part 418","Lobbying for Grants, Loans, Contracts ","written",9,1,9,0.25,{"$f":"SUM(F42*G42)","v":2.25}]
[]
["1710.126; 1710.401(a)(13)(ii)","Federal Debt Delinquency Requirements","written",9,1,9,0.5,{"$f":"SUM(F44*G44)","v":4.5}]
[]
[null,"Review and Acceptance of Condition Letter","written",9,1,9,8,{"$f":"SUM(F46*G46)","v":72}]
[null,null,null,null,null,0]
[]
[null,"Review and Execution of RESP Loan Agreement","written",9,1,9,1,{"$f":"SUM(F49*G49)","v":9}]
[]
[null,"Post Award"]
[]
[null,"Federal Financial Report","written",5,1,5,4,{"$f":"SUM(F53*G53)","v":20}]
[null,"Request for Reimbursement or Advance of Funds ","written",5,1,5,1,5]
[]
[]
[null,"TOTALS",null,17,null,{"$f":"SUM(F16:F56)","v":153},null,1046," "," "," "]
[]
[]
[null,"Burden Accounted for under other OMB Control Numbers"]
["7 CFR part 15, subpart A"," Compliance Assurance (Nondiscrimination in Federally Assisted Programs)(OMB No. 0572-0032)","RUS Form 266",9,1,{"$f":"SUM(D61*E61)","v":9},0.5,{"$f":"SUM(F61*G61)","v":4.5}]
[]
[null," Assurance agreement (OMB No. 0575-0018)","RD Form 400-4",9,1,9,0.25,2.25]
[]
[null," Equal Opportunity Agreement ","RD Form 400-1",9,1,9,0.16,1.44]
[]
[null,"Equal Employment Opportunity Employer Report","SF-100",9,1,{"$f":"SUM(D67*E67)","v":9},0.25,{"$f":"SUM(F67*G67)","v":2.25}]
[null,null,"(3046-0007)"]
[null,null,null,9,1,9,null,{"$f":"SUM(H61:H68)","v":10.44}]

{"sheet":"Sheet2","index":1,"n_rows":0,"n_cols":0,"rows_kept":0,"cut":false,"hidden":false,"merged":[]}

{"sheet":"Sheet3","index":2,"n_rows":0,"n_cols":0,"rows_kept":0,"cut":false,"hidden":false,"merged":[]}